lending/lending_fUSD_20250516
["ID","MTS","AMOUNT","RATE_DAILY","PERIOD"]
[361252563,1747393843950,-603.83,0.00016438,2]
[361252565,1747393843960,-6843.2,0.00016438,2]
[361252567,1747393843969,-400.0,0.00016438,2]
[361252568,1747393843979,-400.0,0.00016438,2]
[361252570,1747393843988,-901.8,0.00016438,2]
[361252572,1747393843998,-400.0,0.00016438,2]
[361252573,1747393844007,-400.0,0.00016438,2]
[361252575,1747393844017,-400.0,0.00016438,2]
[361252577,1747393844026,-400.0,0.00016438,2]
[361252578,1747393844035,-2245.56,0.00016438,2]
[361252580,1747393844046,-400.0,0.00016438,2]
[361252582,1747393844055,-400.0,0.00016438,2]
[361252584,1747393844065,-400.0,0.00016438,2]
[361252586,1747393844074,-400.0,0.00016438,2]
[361252588,1747393844083,-400.0,0.00016438,2]
[361252590,1747393844093,-410.14213989,0.00016438,2]
[361252592,1747393844103,-400.0,0.00016438,2]
[361252594,1747393844113,-464.58,0.00016438,2]
[361252596,1747393844122,-3159.89,0.00016438,2]
[361252598,1747393844132,-2515.15,0.00016438,2]
[361252600,1747393844142,-427.03,0.00016438,2]
[361252602,1747393844151,-261.346572,0.00016438,2]
[361252603,1747393844160,-81954.92650395,0.00016438,2]
[361252610,1747393844822,-6519.31449639,0.00016438,2]
[361252613,1747393846857,-4106.14713802,0.00016238,2]
[361252614,1747393846868,-1692.92209981,0.00016438,2]
[361252615,1747393846879,-2710.28729883,0.00016438,2]
[361252616,1747393847351,-49184.62960102,0.00016438,2]
[361252617,1747393847361,-400.0,0.00016438,2]
[361252618,1747393847370,-400.0,0.00016438,2]
[361252619,1747393847380,-881.14,0.00016438,2]
[361252620,1747393847389,-400.0,0.00016438,2]
[361252621,1747393847398,-191809.71,0.00016438,2]
[361252622,1747393847407,-504.87,0.00016438,2]
[361252623,1747393847417,-400.0,0.00016438,2]
[361252624,1747393847426,-530.76,0.00016438,2]
[361252625,1747393847435,-2296.24,0.00016438,2]
[361252626,1747393847445,-1026.85,0.00016438,2]
[361252627,1747393847454,-400.0,0.00016438,2]
[361252628,1747393847464,-261.346572,0.00016438,2]
[361252629,1747393847474,-400.0,0.00016438,2]
[361252630,1747393847484,-495.48,0.00016438,2]
[361252631,1747393847583,-400.0,0.00016438,2]
[361252632,1747393847593,-400.0,0.00016438,2]
[361252633,1747393847602,-400.0,0.00016438,2]
[361252634,1747393847611,-400.0,0.00016438,2]
[361252635,1747393847621,-878.57,0.00016438,2]
[361252636,1747393847630,-400.0,0.00016438,2]
[361252637,1747393847643,-2617.39,0.00016438,2]
[361252638,1747393847652,-400.0,0.00016438,2]
[361252639,1747393847661,-6483.71,0.00016438,2]
[361252640,1747393847671,-400.0,0.00016438,2]
[361252641,1747393847680,-400.0,0.00016438,2]
[361252642,1747393847689,-2253.22,0.00016438,2]
[361252643,1747393847698,-657.77,0.00016438,2]
[361252644,1747393847707,-400.0,0.00016438,2]
[361252645,1747393847717,-617.2,0.00016438,2]
[361252646,1747393847726,-400.0,0.00016438,2]
[361252647,1747393847736,-531.21,0.00016438,2]
[361252648,1747393847745,-400.0,0.00016438,2]
[361252649,1747393847754,-400.0,0.00016438,2]
[361252650,1747393847763,-400.0,0.00016438,2]
[361252651,1747393847772,-429.65,0.00016438,2]
[361252652,1747393847781,-400.0,0.00016438,2]
[361252653,1747393847790,-434.97095598,0.00016438,2]
[361252654,1747393847799,-400.0,0.00016438,2]
[361252655,1747393847809,-400.0,0.00016438,2]
[361252656,1747393847819,-4197.2,0.00016438,2]
[361252657,1747393847828,-400.0,0.00016438,2]
[361252658,1747393847838,-400.0,0.00016438,2]
[361252659,1747393847847,-1681.16,0.00016438,2]
[361252660,1747393847858,-10086.31,0.00016438,2]
[361252661,1747393847868,-400.0,0.00016438,2]
[361252662,1747393847877,-400.0,0.00016438,2]
[361252663,1747393847887,-400.0,0.00016438,2]
[361252664,1747393847896,-400.0,0.00016438,2]
[361252665,1747393847905,-1058.77,0.00016438,2]
[361252666,1747393847915,-795.83,0.00016438,2]
[361252667,1747393847926,-400.0,0.00016438,2]
[361252668,1747393847936,-400.0,0.00016438,2]
[361252669,1747393847945,-400.0,0.00016438,2]
[361252670,1747393847955,-400.0,0.00016438,2]
[361252671,1747393847964,-748.74,0.00016438,2]
[361252672,1747393847974,-151.0,0.00016438,2]
[361252673,1747393847983,-151.0,0.00016438,2]
[361252674,1747393847992,-400.0,0.00016438,2]
[361252675,1747393848001,-400.0,0.00016438,2]
[361252676,1747393848010,-400.0,0.00016438,2]
[361252677,1747393848020,-325.71417707,0.00016438,2]
[361252678,1747393848029,-1573.96,0.00016438,2]
[361252679,1747393848039,-400.0,0.00016438,2]
[361252680,1747393848048,-458.8,0.00016438,2]
[361252681,1747393848058,-400.0,0.00016438,2]
[361252682,1747393848069,-19705.01,0.00016438,2]
[361252683,1747393848078,-151.0,0.00016438,2]
[361252684,1747393848088,-400.0,0.00016438,2]
[361252685,1747393848097,-160.999159,0.00016438,2]
[361252686,1747393848107,-38.04878239,0.00016438,2]
[361252687,1747393848327,-361.95121761,0.00016438,2]
[361252688,1747393848337,-814.98,0.00016438,2]
[361252689,1747393848347,-577.84,0.00016438,2]
[361252690,1747393848357,-400.0,0.00016438,2]
[361252691,1747393848367,-2586.57973061,0.00016438,2]
[361252692,1747393848385,-960.18193795,0.00016438,2]
[361252693,1747393848396,-1373.35833144,0.00016438,2]
[361252694,1747393848405,-400.0,0.00016438,2]
[361252695,1747393848415,-151.0,0.00016438,2]
[361252696,1747393848424,-400.0,0.00016438,2]
[361252697,1747393848434,-400.0,0.00016438,2]
[361252698,1747393848444,-1405.5,0.00016438,2]
[361252699,1747393848454,-2790.5,0.00016438,2]
[361252700,1747393848464,-2328.9014138,0.00016438,2]
[361252701,1747393848476,-2245.8985862,0.00016438,2]
[361252702,1747393848486,-400.0,0.00016438,2]
[361252703,1747393848495,-151.0,0.00016438,2]
[361252704,1747393848505,-400.0,0.00016438,2]
[361252705,1747393848514,-400.0,0.00016438,2]
[361252706,1747393848523,-151.0,0.00016438,2]
[361252707,1747393848532,-151.0,0.00016438,2]
[361252708,1747393848542,-401.78,0.00016438,2]
[361252709,1747393848551,-400.0,0.00016438,2]
[361252710,1747393848561,-1478.63,0.00016438,2]
[361252711,1747393848571,-472.47484516,0.00016438,2]
[361252712,1747393848581,-400.0,0.00016438,2]
[361252713,1747393848591,-12883.76503694,0.00016438,2]
[361252714,1747393848603,-1472.72496306,0.00016438,2]
[361252715,1747393848613,-741.38,0.00016438,2]
[361252716,1747393848625,-400.0,0.00016438,2]
[361252717,1747393848635,-577.16,0.00016438,2]
[361252718,1747393848644,-2943.16,0.00016438,2]
[361252719,1747393848654,-400.0,0.00016438,2]
[361252720,1747393848664,-151.0,0.00016438,2]
[361252721,1747393848673,-151.0,0.00016438,2]
[361252722,1747393848683,-151.0,0.00016438,2]
[361252723,1747393848693,-2334.48,0.00016438,2]
[361252724,1747393848705,-400.0,0.00016438,2]
[361252725,1747393848715,-1333.93,0.00016438,2]
[361252726,1747393848726,-947.2,0.00016438,2]
[361252727,1747393848735,-7123.0,0.00016438,2]
[361252728,1747393848745,-1127.14,0.00016438,2]
[361252729,1747393848755,-224.30336196,0.00016438,2]
[361252730,1747393848766,-165.1712771,0.00016438,2]
[361252731,1747393848775,-400.0,0.00016438,2]
[361252732,1747393848785,-1661.05,0.00016438,2]
[361252733,1747393848795,-1075.2,0.00016438,2]
[361252734,1747393848805,-1959.55,0.00016438,2]
[361252735,1747393848814,-519.19,0.00016438,2]
[361252736,1747393848824,-400.0,0.00016438,2]
[361252737,1747393848834,-1477.42,0.00016438,2]
[361252738,1747393848844,-400.0,0.00016438,2]
[361252739,1747393848853,-400.0,0.00016438,2]
[361252740,1747393848863,-400.0,0.00016438,2]
[361252741,1747393848872,-197.15947916,0.00016438,2]
[361252742,1747393848884,-205.08975426,0.00016438,2]
[361252743,1747393848893,-463.07,0.00016438,2]
[361252744,1747393848903,-435.18,0.00016438,2]
[361252745,1747393848913,-400.0,0.00016438,2]
[361252746,1747393848922,-400.0,0.00016438,2]
[361252747,1747393848932,-891.02,0.00016438,2]
[361252748,1747393848942,-293.77573273,0.00016438,2]
[361252749,1747393848952,-14385.41,0.00016438,2]
[361252750,1747393848962,-1144.12,0.00016438,2]
[361252751,1747393848972,-402.57,0.00016438,2]
[361252752,1747393848983,-400.0,0.00016438,2]
[361252753,1747393848993,-1728.42,0.00016438,2]
[361252754,1747393849002,-151.0,0.00016438,2]
[361252755,1747393849012,-537.85156794,0.00016438,2]
[361252756,1747393849022,-502.99,0.00016438,2]
[361252757,1747393849031,-169.788635,0.00016438,2]
[361252758,1747393849041,-452.08428429,0.00016438,2]
[361252759,1747393849051,-400.0,0.00016438,2]
[361252760,1747393849061,-389.72296842,0.00016438,2]
[361252761,1747393849070,-400.0,0.00016438,2]
[361252762,1747393849080,-400.0,0.00016438,2]
[361252763,1747393849090,-2920.19,0.00016438,2]
[361252764,1747393849100,-424.59,0.00016438,2]
[361252765,1747393849109,-152.30334645,0.00016438,2]
[361252766,1747393849119,-400.0,0.00016438,2]
[361252767,1747393849128,-404.48016676,0.00016438,2]
[361252768,1747393849138,-2406.44,0.00016438,2]
[361252769,1747393849147,-400.0,0.00016438,2]
[361252770,1747393849157,-151.0,0.00016438,2]
[361252771,1747393849167,-151.0,0.00016438,2]
[361252772,1747393849177,-980.35,0.00016438,2]
[361252773,1747393849187,-400.0,0.00016438,2]
[361252774,1747393849197,-400.0,0.00016438,2]
[361252775,1747393849206,-400.0,0.00016438,2]
[361252776,1747393849216,-400.0,0.00016438,2]
[361252777,1747393849226,-9539.86,0.00016438,2]
[361252778,1747393849236,-400.0,0.00016438,2]
[361252779,1747393849246,-400.0,0.00016438,2]
[361252780,1747393849256,-484.74,0.00016438,2]
[361252781,1747393849266,-1025.62,0.00016438,2]
[361252782,1747393849277,-400.0,0.00016438,2]
[361252783,1747393849287,-500.93443814,0.00016438,2]
[361252784,1747393849299,-400.0,0.00016438,2]
[361252785,1747393849309,-400.0,0.00016438,2]
[361252786,1747393849319,-400.0,0.00016438,2]
[361252787,1747393849329,-400.0,0.00016438,2]
[361252788,1747393849339,-1290.99,0.00016438,2]
[361252789,1747393849349,-400.0,0.00016438,2]
[361252790,1747393849359,-400.0,0.00016438,2]
[361252791,1747393849369,-400.0,0.00016438,2]
[361252792,1747393849379,-468.9,0.00016438,2]
[361252793,1747393849388,-2514.58,0.00016438,2]
[361252794,1747393849399,-400.0,0.00016438,2]
[361252795,1747393849408,-400.0,0.00016438,2]
[361252796,1747393849417,-968.96,0.00016438,2]
[361252797,1747393849427,-2911.32,0.00016438,2]
[361252798,1747393849436,-8955.81,0.00016438,2]
[361252799,1747393849445,-733.15,0.00016438,2]
[361252800,1747393849455,-400.0,0.00016438,2]
[361252801,1747393849465,-400.0,0.00016438,2]
[361252802,1747393849475,-3597.39,0.00016438,2]
[361252803,1747393849487,-344.82127888,0.00016438,2]
[361252804,1747393849497,-1204.31,0.00016438,2]
[361252805,1747393849506,-1708.97,0.00016438,2]
[361252806,1747393849518,-151.0,0.00016438,2]
[361252807,1747393849529,-151.0,0.00016438,2]
[361252808,1747393849539,-400.0,0.00016438,2]
[361252809,1747393849548,-400.0,0.00016438,2]
[361252810,1747393849558,-492.24567224,0.00016438,2]
[361252811,1747393849567,-400.0,0.00016438,2]
[361252812,1747393849577,-400.0,0.00016438,2]
[361252813,1747393849587,-400.0,0.00016438,2]
[361252814,1747393849597,-500.0,0.00016438,2]
[361252815,1747393849607,-500.0,0.00016438,2]
[361252816,1747393849616,-500.0,0.00016438,2]
[361252817,1747393849626,-2581.84,0.00016438,2]
[361252818,1747393849636,-500.0,0.00016438,2]
[361252819,1747393849648,-500.0,0.00016438,2]
[361252820,1747393849658,-500.0,0.00016438,2]
[361252821,1747393849667,-500.0,0.00016438,2]
[361252822,1747393849676,-400.0,0.00016438,2]
[361252823,1747393849687,-500.0,0.00016438,2]
[361252824,1747393849697,-14266.93,0.00016438,2]
[361252825,1747393849706,-400.0,0.00016438,2]
[361252826,1747393849715,-2105.7,0.00016438,2]
[361252827,1747393849725,-400.0,0.00016438,2]
[361252828,1747393849735,-3099.71,0.00016438,2]
[361252829,1747393849745,-1284.87,0.00016438,2]
[361252830,1747393849755,-400.0,0.00016438,2]
[361252831,1747393849764,-400.0,0.00016438,2]
[361252832,1747393849773,-377.65875643,0.00016438,2]
[361252833,1747393849783,-400.0,0.00016438,2]
[361252834,1747393849793,-850.54,0.00016438,2]
[361252835,1747393849803,-569.2,0.00016438,2]
[361252836,1747393849813,-400.0,0.00016438,2]
[361252837,1747393849823,-400.0,0.00016438,2]
[361252838,1747393849833,-400.0,0.00016438,2]
[361252839,1747393849843,-400.0,0.00016438,2]
[361252840,1747393849852,-734.31,0.00016438,2]
[361252841,1747393849862,-400.0,0.00016438,2]
[361252842,1747393849872,-400.0,0.00016438,2]
[361252843,1747393849881,-400.0,0.00016438,2]
[361252844,1747393849891,-400.0,0.00016438,2]
[361252845,1747393849900,-594.69,0.00016438,2]
[361252846,1747393849910,-785.05,0.00016438,2]
[361252847,1747393849919,-400.0,0.00016438,2]
[361252848,1747393849929,-622.09,0.00016438,2]
[361252849,1747393849938,-400.0,0.00016438,2]
[361252850,1747393849947,-400.0,0.00016438,2]
[361252851,1747393849957,-6379.97,0.00016438,2]
[361252852,1747393849967,-151.0,0.00016438,2]
[361252853,1747393849976,-400.0,0.00016438,2]
[361252854,1747393849985,-400.0,0.00016438,2]
[361252855,1747393849995,-400.0,0.00016438,2]
[361252856,1747393850004,-644.98,0.00016438,2]
[361252857,1747393850013,-3961.66,0.00016438,2]
[361252858,1747393850023,-400.0,0.00016438,2]
[361252859,1747393850032,-416.27,0.00016438,2]
[361252860,1747393850042,-5132.87,0.00016438,2]
[361252861,1747393850052,-151.0,0.00016438,2]
[361252862,1747393850061,-406.52694437,0.00016438,2]
[361252863,1747393850071,-578.45,0.00016438,2]
[361252864,1747393850080,-400.0,0.00016438,2]
[361252865,1747393850089,-558.96,0.00016438,2]
[361252866,1747393850099,-1172.97,0.00016438,2]
[361252867,1747393850109,-400.0,0.00016438,2]
[361252868,1747393850118,-400.0,0.00016438,2]
[361252869,1747393850127,-675.4,0.00016438,2]
[361252870,1747393850137,-400.0,0.00016438,2]
[361252871,1747393850146,-740.63,0.00016438,2]
[361252872,1747393850156,-450.78,0.00016438,2]
[361252873,1747393850166,-400.0,0.00016438,2]
[361252874,1747393850175,-400.0,0.00016438,2]
[361252875,1747393850185,-400.0,0.00016438,2]
[361252876,1747393850195,-400.0,0.00016438,2]
[361252877,1747393850208,-400.0,0.00016438,2]
[361252878,1747393850219,-3299.1,0.00016438,2]
[361252879,1747393850228,-436.51,0.00016438,2]
[361252880,1747393850238,-400.0,0.00016438,2]
[361252881,1747393850248,-400.0,0.00016438,2]
[361252882,1747393850258,-1335.01,0.00016438,2]
[361252883,1747393850267,-779.86,0.00016438,2]
[361252884,1747393850277,-400.0,0.00016438,2]
[361252885,1747393850287,-400.0,0.00016438,2]
[361252886,1747393850297,-3215.78,0.00016438,2]
[361252887,1747393850307,-400.0,0.00016438,2]
[361252888,1747393850315,-400.0,0.00016438,2]
[361252889,1747393850325,-400.0,0.00016438,2]
[361252890,1747393850335,-400.0,0.00016438,2]
[361252891,1747393850345,-400.0,0.00016438,2]
[361252892,1747393850354,-400.0,0.00016438,2]
[361252893,1747393850363,-465.12,0.00016438,2]
[361252894,1747393850373,-400.0,0.00016438,2]
[361252895,1747393850382,-508.49,0.00016438,2]
[361252896,1747393850391,-1516.14,0.00016438,2]
[361252897,1747393850400,-400.0,0.00016438,2]
[361252898,1747393850410,-853.61,0.00016438,2]
[361252899,1747393850419,-400.0,0.00016438,2]
[361252900,1747393850428,-400.0,0.00016438,2]
[361252901,1747393850437,-609.49,0.00016438,2]
[361252902,1747393850447,-400.0,0.00016438,2]
[361252903,1747393850456,-400.0,0.00016438,2]
[361252904,1747393850465,-400.0,0.00016438,2]
[361252905,1747393850474,-400.0,0.00016438,2]
[361252906,1747393850484,-634.18,0.00016438,2]
[361252907,1747393850493,-1545.94,0.00016438,2]
[361252908,1747393850502,-400.0,0.00016438,2]
[361252909,1747393850512,-151.0,0.00016438,2]
[361252910,1747393850521,-400.0,0.00016438,2]
[361252911,1747393850531,-400.0,0.00016438,2]
[361252912,1747393850540,-400.0,0.00016438,2]
[361252913,1747393850550,-400.0,0.00016438,2]
[361252914,1747393850560,-456.61437744,0.00016438,2]
[361252915,1747393850569,-1290.73,0.00016438,2]
[361252916,1747393850579,-402.05,0.00016438,2]
[361252917,1747393850588,-400.0,0.00016438,2]
[361252918,1747393850598,-400.0,0.00016438,2]
[361252919,1747393850608,-8786.84,0.00016438,2]
[361252920,1747393850621,-19861.97,0.00016438,2]
[361252921,1747393850631,-400.0,0.00016438,2]
[361252922,1747393850640,-400.0,0.00016438,2]
[361252923,1747393850649,-400.0,0.00016438,2]
[361252924,1747393850659,-408.23466535,0.00016438,2]
[361252925,1747393850669,-400.0,0.00016438,2]
[361252926,1747393850679,-2684.25,0.00016438,2]
[361252927,1747393850688,-400.0,0.00016438,2]
[361252928,1747393850697,-400.0,0.00016438,2]
[361252929,1747393850707,-400.0,0.00016438,2]
[361252930,1747393850717,-400.0,0.00016438,2]
[361252931,1747393850726,-400.0,0.00016438,2]
[361252932,1747393850735,-1239.97,0.00016438,2]
[361252933,1747393850744,-400.0,0.00016438,2]
[361252934,1747393850754,-847.72,0.00016438,2]
[361252935,1747393850763,-2320.59,0.00016438,2]
[361252936,1747393850772,-624.14,0.00016438,2]
[361252937,1747393850782,-400.0,0.00016438,2]
[361252938,1747393850791,-400.0,0.00016438,2]
[361252939,1747393850800,-400.0,0.00016438,2]
[361252940,1747393850810,-400.0,0.00016438,2]
[361252941,1747393850820,-400.0,0.00016438,2]
[361252942,1747393850830,-649.71,0.00016438,2]
[361252943,1747393850839,-332.82007306,0.00016438,2]
[361252944,1747393850849,-2405.42,0.00016438,2]
[361252945,1747393850859,-572.7,0.00016438,2]
[361252946,1747393850869,-400.0,0.00016438,2]
[361252947,1747393850879,-400.0,0.00016438,2]
[361252948,1747393850889,-400.0,0.00016438,2]
[361252949,1747393850898,-400.0,0.00016438,2]
[361252950,1747393850908,-468.42677571,0.00016438,2]
[361252951,1747393850917,-3220.34,0.00016438,2]
[361252952,1747393850927,-158.16656998,0.00016438,2]
[361252953,1747393850936,-520.5,0.00016438,2]
[361252954,1747393850945,-400.0,0.00016438,2]
[361252955,1747393850955,-400.0,0.00016438,2]
[361252956,1747393850964,-400.0,0.00016438,2]
[361252957,1747393850974,-400.0,0.00016438,2]
[361252958,1747393850984,-400.0,0.00016438,2]
[361252959,1747393850994,-517.07,0.00016438,2]
[361252960,1747393851003,-400.0,0.00016438,2]
[361252961,1747393851012,-428.05,0.00016438,2]
[361252962,1747393851022,-400.0,0.00016438,2]
[361252963,1747393851031,-2247.39,0.00016438,2]
[361252964,1747393851041,-400.0,0.00016438,2]
[361252965,1747393851050,-400.0,0.00016438,2]
[361252966,1747393851060,-985.45,0.00016438,2]
[361252967,1747393851070,-1312.57,0.00016438,2]
[361252968,1747393851080,-1499.57,0.00016438,2]
[361252969,1747393851089,-400.0,0.00016438,2]
[361252970,1747393851098,-151.0,0.00016438,2]
[361252971,1747393851108,-400.0,0.00016438,2]
[361252972,1747393851118,-400.0,0.00016438,2]
[361252973,1747393851127,-400.0,0.00016438,2]
[361252974,1747393851137,-400.0,0.00016438,2]
[361252975,1747393851146,-400.0,0.00016438,2]
[361252976,1747393851156,-400.0,0.00016438,2]
[361252977,1747393851165,-8587.8341273,0.00016438,2]
[361252978,1747393852032,-56.89,0.0001634,2]
[361252979,1747393852044,-1020.7,0.0001634,2]
[361252980,1747393852056,-3028.55713793,0.0001634,2]
[361252981,1747393852067,-2482.4758727,0.00016438,2]
[361252982,1747393852078,-504.10896976,0.00016438,2]
[361252983,1747393852088,-1414.84,0.00016438,2]
[361252984,1747393852098,-400.0,0.00016438,2]
[361252985,1747393852108,-319.712466,0.00016438,2]
[361252986,1747393852118,-400.13163351,0.00016438,2]
[361252987,1747393852128,-1003.82,0.00016438,2]
[361252988,1747393852138,-896.68,0.00016438,2]
[361252989,1747393852148,-400.0,0.00016438,2]
[361252990,1747393852158,-1397.86,0.00016438,2]
[361252991,1747393852168,-568.94,0.00016438,2]
[361252992,1747393852178,-400.0,0.00016438,2]
[361252993,1747393852188,-1158.4,0.00016438,2]
[361252994,1747393852198,-400.0,0.00016438,2]
[361252995,1747393852217,-400.0,0.00016438,2]
[361252996,1747393852227,-401.13983671,0.00016438,2]
[361252997,1747393852237,-400.0,0.00016438,2]
[361252998,1747393852247,-400.0,0.00016438,2]
[361252999,1747393852257,-400.0,0.00016438,2]
[361253000,1747393852267,-400.0,0.00016438,2]
[361253001,1747393852277,-815.35,0.00016438,2]
[361253002,1747393852287,-400.0,0.00016438,2]
[361253003,1747393852298,-716.94,0.00016438,2]
[361253004,1747393852309,-402.45793042,0.00016438,2]
[361253005,1747393852320,-400.0,0.00016438,2]
[361253006,1747393852330,-409.99,0.00016438,2]
[361253007,1747393852341,-400.0,0.00016438,2]
[361253008,1747393852351,-400.0,0.00016438,2]
[361253009,1747393852361,-400.0,0.00016438,2]
[361253010,1747393852371,-200.0,0.00016442,2]
[361253011,1747393852381,-500.0,0.00016473,2]
[361253012,1747393852391,-500.0,0.00016473,2]
[361253013,1747393852400,-500.0,0.00016473,2]
[361253014,1747393852410,-500.0,0.00016473,2]
[361253015,1747393852419,-151.0,0.00016473,2]
[361253016,1747393852430,-204.175928,0.00016473,2]
[361253017,1747393852440,-3651.6261989,0.00016521,2]
[361253018,1747393853026,-400.0,0.00016438,2]
[361253019,1747393853036,-400.0,0.00016438,2]
[361253020,1747393853046,-400.0,0.00016438,2]
[361253021,1747393853056,-400.0,0.00016438,2]
[361253022,1747393853066,-1470.5,0.00016521,2]
[361253023,1747393853256,-633.03,0.00016438,2]
[361253024,1747393853266,-6.83115678,0.00016521,2]
[361253025,1747393853275,-2700.0,0.000166,6]
[361253026,1747393853286,-3310.83213374,0.00016612,2]
[361253027,1747393853408,-304.04614302,0.00016612,2]
[361253028,1747393853426,-1514.07907892,0.00016612,2]
[361253029,1747393853437,-510.5292586,0.00016628,2]
[361253030,1747393853448,-20.79166258,0.00016648,2]
[361253031,1747394099686,2332.36974778,0.00010402,2]
[361253032,1747394100860,-305.27158421,0.00010402,2]
[361253033,1747394109051,-159.45780694,0.00010402,2]
[361253034,1747394112985,-219.33475114,0.00010402,2]
[361253035,1747394250431,160.08,0.00021945,30]
[361253038,1747394616716,1000.0,0.00025,30]
[361253039,1747394678989,150.0,0.000125,5]
[361253043,1747394915445,1567.23988721,0.00025,120]
[361253045,1747394931903,-183.35867225,0.00010999,2]
[361253046,1747394931924,-367.77247735,0.00010999,2]
[361253047,1747394931948,-500.0,0.00010999,2]
[361253048,1747394931974,-500.0,0.00010999,2]
[361253049,1747394931996,-500.0,0.00010999,2]
[361253050,1747394932021,-570.63496193,0.00010999,2]
[361253051,1747394932043,-7378.23388847,0.00011,2]
[361253052,1747394932971,-10000.0,0.00011,2]
[361253053,1747394935621,-10000.0,0.00011,2]
[361253054,1747394936965,-10000.0,0.00011,2]
[361253055,1747394939502,-170000.0,0.00011,2]
[361253059,1747394969362,37999.0255893,0.00025,30]
[361253071,1747395031471,-159.51,0.0001099,2]
[361253072,1747395031481,-159.51,0.0001099,2]
[361253073,1747395031491,-159.51,0.0001099,2]
[361253074,1747395031501,-159.51,0.0001099,2]
[361253075,1747395031511,-61.96,0.0001099,2]
[361253076,1747395031523,-97.55,0.0001099,2]
[361253077,1747395031533,-159.51,0.0001099,2]
[361253078,1747395031543,-159.51,0.0001099,2]
[361253079,1747395031552,-1200.0,0.00010999,2]
[361253080,1747395031563,-250.0,0.00010999,2]
[361253081,1747395031573,-281974.95203868,0.00011,2]
[361253082,1747395031590,-3174.57961507,0.00011,2]
[361253083,1747395031603,-523.50990322,0.00011,2]
[361253084,1747395031620,-2231.93400728,0.00011,2]
[361253085,1747395031632,-577.83489551,0.00011,2]
[361253086,1747395031689,-1449.73368001,0.00011,2]
[361253087,1747395031701,-8319.7704044,0.00011,2]
[361253088,1747395031712,-796.98009551,0.00011,2]
[361253095,1747395037375,-492.95,0.00011,2]
[361253097,1747395037589,-1023.1999999,0.00011,2]
[361253140,1747395039555,-305.0000025,0.00011,2]
[361253141,1747395039568,-29571.15953753,0.00011,2]
[361253142,1747395039579,-63496.02921036,0.00011,2]
[361253143,1747395039589,-159.51,0.00011557,2]
[361253144,1747395039598,-620.87901875,0.00011567,2]
[361253145,1747395039609,-3470.68141348,0.00011567,2]
[361253146,1747395039619,-500.0,0.00011667,2]
[361253147,1747395039628,-500.75801493,0.00011667,2]
[361253148,1747395039638,-500.0,0.00011667,2]
[361253149,1747395039647,-507.23104748,0.00011667,2]
[361253150,1747395039656,-156.66002964,0.00011667,2]
[361253151,1747395039665,-500.0,0.00012,2]
[361253152,1747395039674,-500.0,0.00012,2]
[361253153,1747395039683,-500.0,0.00012,2]
[361253154,1747395039692,-208.23793323,0.00012,2]
[361253155,1747395039701,-307.60775434,0.00012,2]
[361253156,1747395039710,-500.0,0.00012,2]
[361253157,1747395039719,-500.0,0.00012,2]